Cogmind - Beta 17.1 @@@ ROGUE MODE // 2026.09.03 @ 22:07:58 Player: C0-2MO Result: Escaped! Performance ------------- Evolutions (9) 4500 Regions Visited (14) 2800 Robots Destroyed (6) 30 Value Destroyed (77) 77 Prototype IDs (8) 160 Alien Tech Used (0) 0 Bonus (34030) 34030 TOTAL SCORE: 41597 Bonus ------- Pacifist 7906 Entered DSFs 1000 Win 3000 Win Speed 22124 Cogmind --------- Core Integrity 1572/1600 Matter 215/300 Energy 276/310 System Corruption 0% Temperature Warm (174) Movement Flying (10) Location To Epsilon Eridani Parts ------- > --- POWER (3) -------- Micro Fission Core Light Antimatter Reactor Light Quantum Reactor > --- PROPULSION (12) -- Cesium-ion Thruster Advanced Surge Thruster Advanced Surge Thruster Advanced Surge Thruster Advanced Surge Thruster Q-thruster Q-thruster Q-thruster Q-thruster Q-thruster Q-thruster Electron Diverter > --- UTILITY (8) ------ Advanced Coolant Injector Advanced Coolant Injector Structural Scanner Spectral Analyzer Advanced Signal Interpreter Seismic Detector Hacking Suite Advanced Hacking Suite > --- WEAPON (2) ------- Enhanced Force Lance > --- INVENTORY (5) ---- Improved Fusion Compressor Xenon Bombardment Thruster Peak State ------------ > --- POWER ------------ Micro Fission Core Light Antimatter Reactor Light Quantum Reactor > --- PROPULSION ------- Cesium-ion Thruster Advanced Surge Thruster Advanced Surge Thruster Advanced Surge Thruster Advanced Surge Thruster Q-thruster Q-thruster Q-thruster Q-thruster Q-thruster Q-thruster Electron Diverter > --- UTILITY ---------- Advanced Coolant Injector Advanced Coolant Injector Structural Scanner Spectral Analyzer Advanced Signal Interpreter Seismic Detector Hacking Suite Advanced Hacking Suite > --- WEAPON ----------- Enhanced Force Lance > --- INVENTORY -------- Improved Fusion Compressor Xenon Bombardment Thruster [Rating: 158] Favorites ----------- Power Light Particle Reactor Engine Light Angular Momentum Engine Power Core Micro Fission Core Reactor Light Particle Reactor Propulsion Nuclear Pulse Array Treads Light Treads Flight Unit Nuclear Pulse Array Utility Hacking Suite Device Experimental Sensor Array Processor Spectral Analyzer Hackware Hacking Suite Protection Propulsion Shielding Weapon Assault Rifle Energy Gun EM Pulse Gun Energy Cannon Nova Cannon Ballistic Gun Assault Rifle Special Weapon Mining Laser Piercing Weapon Enhanced Force Lance Build | -11 -10 -10 -9 -9 -8 -7 -6 -5 -5 -4 -3 -2 -2 -1 ------- Run | Yrd Mat Min Mat Min Mat Fac Fac Fac DSF Fac Res Res DSF Acc Slots Evolved 18 | . . . 2 . 2 2 2 2 . 2 2 2 . 2 Power 2 | . . . . . . . 1 . . . . . . 1 Propulsion 10 | . . . 2 . . 2 1 1 . 2 1 . . 1 Utility 6 | . . . . . 2 . . 1 . . 1 2 . . Weapon . | . . . . . . . . . . . . . . . Parts Attached 55 | 3 . 1 . . . 7 5 . 4 1 10 1 14 9 Power 8 | . . . . . . . 1 . . . 2 . 3 2 Engine 2 | . . . . . . . 1 . . . 1 . . . Core 1 | . . . . . . . . . . . . . 1 . Reactor 5 | . . . . . . . . . . . 1 . 2 2 Propulsion 26 | 2 . . . . . 3 2 . 3 1 2 . 11 2 Treads 3 | 2 . . . . . 1 . . . . . . . . Leg . | . . . . . . . . . . . . . . . Wheel . | . . . . . . . . . . . . . . . Hover . | . . . . . . . . . . . . . . . Flight 23 | . . . . . . 2 2 . 3 1 2 . 11 2 Utility 16 | . . 1 . . . 2 2 . 1 . 4 1 . 5 Device 10 | . . 1 . . . . 2 . . . 2 . . 5 Storage . | . . . . . . . . . . . . . . . Processor 3 | . . . . . . 1 . . . . 2 . . . Hackware 2 | . . . . . . 1 . . . . . 1 . . Protection 1 | . . . . . . . . . 1 . . . . . Artifact . | . . . . . . . . . . . . . . . Weapon 5 | 1 . . . . . 2 . . . . 2 . . . Energy Gun 1 | . . . . . . 1 . . . . . . . . Energy Cannon 1 | . . . . . . . . . . . 1 . . . Ballistic Gun 1 | 1 . . . . . . . . . . . . . . Ballistic Cannon . | . . . . . . . . . . . . . . . Launcher . | . . . . . . . . . . . . . . . Special Weapon 1 | . . . . . . 1 . . . . . . . . Impact Weapon . | . . . . . . . . . . . . . . . Slashing Weapon . | . . . . . . . . . . . . . . . Piercing Weapon 1 | . . . . . . . . . . . 1 . . . Special Melee Weapon . | . . . . . . . . . . . . . . . Unidentified Prototypes 5 | . . 1 . . . . 1 . . . 3 . . . Parts Lost 17 | . . . . . . . . . 1 . 1 . 14 1 Power 5 | . . . . . . . . . . . 1 . 4 . Propulsion 9 | . . . . . . . . . 1 . . . 7 1 Utility 3 | . . . . . . . . . . . . . 3 . Weapon . | . . . . . . . . . . . . . . . Highest Loss Streak 14 | . . . . . . . . . 1 . 1 . 14 1 To Critical Strikes . | . . . . . . . . . . . . . . . Average Backups 2 | . . . . 2 2 2 2 2 2 1 4 3 3 2 Power . | . . . . . . . . . . . . . . . Propulsion . | . . . . . . . . . . 1 1 2 2 1 Utility 1 | . . . . 1 1 1 2 2 2 . 2 1 1 . Weapon . | . . . . 1 1 . . . . . . . . . Tool/Special . | . . . . . . . . . . . . . . . Unused Backups 2 | . . . . . . . . . 1 . . . . 1 Power 1 | . . . . . . . . . . . . . . 1 Propulsion . | . . . . . . . . . . . . . . . Utility 1 | . . . . . . . . . 1 . . . . . Weapon . | . . . . . . . . . . . . . . . Tool/Special . | . . . . . . . . . . . . . . . Average Slot Usage (%) 60 | . 42 46 44 44 36 40 54 64 67 73 74 77 67 87 Engine 1 | . . . . . . . 4 11 11 10 4 4 1 . Reactor 1 | . . . . . . . . . . . 3 4 4 5 Treads 7 | . 28 28 22 22 18 9 . . . . . . . . Flight 18 | . . . . . . 3 19 23 26 31 28 26 26 43 Device 10 | . . 3 11 11 9 7 9 11 11 10 13 13 8 13 Processor 4 | . . . . . . 4 6 5 5 5 8 8 8 8 Hackware 4 | . . . . . . 6 6 5 5 5 4 7 8 8 Ballistic Gun 5 | . 14 14 11 11 9 7 6 5 5 5 2 . . . Piercing Weapon 1 | . . . . . . . . . . . 1 4 4 4 Peak Build Rating 158 | 3 3 12 12 12 12 24 42 42 73 86 136 142 142 158 Average Rating 70 | 2 3 5 12 12 12 18 35 42 57 85 122 141 115 144 On Entrance 48 | . 3 3 12 12 12 12 24 42 42 73 86 136 142 122 Avg Prop Armor Cover (%) 19 | 30 30 29 29 29 29 32 . . . . . . 24 11 Naked Turns . | . . . . . . . . . . . . . . . Heaviest Build 44 | 2 2 3 3 3 3 4 14 14 15 16 40 40 40 44 Greatest Support 77 | 3 3 3 3 3 3 12 23 23 50 63 73 73 76 77 Greatest Overweight (x) 1 | . . . . . . 1 . . . . . . . . Average Overweight (x) . | . . . . . . . . . . . . . . . Largest Inventory Capacity 5 | 5 5 5 5 5 5 5 5 5 5 5 5 5 5 5 Average Capacity 5 | 5 5 5 5 5 5 5 5 5 5 5 5 5 5 5 Most Carried 5 | . . . 2 2 3 3 3 2 4 3 5 4 4 4 Average Carried 2 | . . . . 2 2 2 2 2 2 2 4 3 3 2 Final Capacity 5 | 5 5 5 5 5 5 5 5 5 5 5 5 5 5 5 Final Carried 5 | . . . 2 2 3 3 2 2 4 3 5 3 4 2 Class Distribution -------------------- 44% | Mutant 20% | Scavenger-Sprinter 15% | Scout 6% | Sprinter 5% | Hacker-Ninja 5% | Ninja Dominant Class ---------------- Mutant | -10/Materials Mutant | -10/Mines Mutant | -9/Materials Mutant | -9/Mines Mutant | -8/Materials Mutant | -7/Factory Sprinter | -6/Factory Sprinter | -5/Factory Sprinter | -5/DSF Sprinter | -4/Factory Scout | -3/Research Hacker-Ninja | -2/Research Hacker-Ninja | -2/DSF Scavenger-Sprinter | -1/Access Resources | -11 -10 -10 -9 -9 -8 -7 -6 -5 -5 -4 -3 -2 -2 -1 ----------- Run | Yrd Mat Min Mat Min Mat Fac Fac Fac DSF Fac Res Res DSF Acc Matter Collected 668 | 189 . 41 . . . 68 . . . . 90 . 131 149 Remotely . | . . . . . . . . . . . . . . . Salvage Created 149 | . . . . . . . . . . . . . . 149 Parts 14 | . . . . . . . . . . . . . . 14 Haulers Intercepted . | . . . . . . . . . . . . . . . Recyclers Shooed . | . . . . . . . . . . . . . . . Parts Field Recycled . | . . . . . . . . . . . . . . . Retrieved Matter . | . . . . . . . . . . . . . . . Parts Self-Destructed . | . . . . . . . . . . . . . . . Prevented . | . . . . . . . . . . . . . . . Parts Restored . | . . . . . . . . . . . . . . . Kills | -11 -10 -10 -9 -9 -8 -7 -6 -5 -5 -4 -3 -2 -2 -1 ------- Run | Yrd Mat Min Mat Min Mat Fac Fac Fac DSF Fac Res Res DSF Acc Combat Hostiles Destroyed . | . . . . . . . . . . . . . . . Classes Destroyed 4 | . . . . . . . . . . . . . . 4 Worker 1 | . . . . . . . . . . . . . . 1 Builder 3 | . . . . . . . . . . . . . . 3 Tunneler 1 | . . . . . . . . . . . . . . 1 Watcher 1 | . . . . . . . . . . . . . . 1 Best Kill Streak 6 | . . . . . . . . . . . . . . 6 Combat Bots Only . | . . . . . . . . . . . . . . . Max Kills in Single Turn 1 | . . . . . . . . . . . . . . 1 Gunslinging . | . . . . . . . . . . . . . . . Exploded . | . . . . . . . . . . . . . . . Melee . | . . . . . . . . . . . . . . . Uniques/NPCs Destroyed . | . . . . . . . . . . . . . . . Combat | -11 -10 -10 -9 -9 -8 -7 -6 -5 -5 -4 -3 -2 -2 -1 -------- Run | Yrd Mat Min Mat Min Mat Fac Fac Fac DSF Fac Res Res DSF Acc Hostile Shots Fired 94 | . 1 . . . 2 10 . . 1 2 35 6 31 6 Missed 40 | . 1 . . . . 9 . . . 1 15 2 10 2 Hits 54 | . . . . . 2 1 . . 1 1 20 4 21 4 Melee 12 | . . . . . . . . . . . . . 12 . Projectile 42 | . . . . . 2 1 . . 1 1 20 4 9 4 AOE 1 | . . . . . . . . . . . . . 1 . Critical Strikes 6 | . . . . . . . . . . . . . 6 . Actively Blocked 1 | . . . . . . . . . . . . . 1 . Damage Taken 2199 | . . . . . 48 26 . . 73 17 528 62 1269 176 Core 702 | . . . . . 48 5 . . . . 164 20 437 28 Absorbed by Shields . | . . . . . . . . . . . . . . . Redirected to Shielding 56 | . . . . . . . . . . 5 . 13 38 . Core Remaining (%) 94 | 100 . 100 . 100 91 99 100 . 100 100 87 . 68 98 Volleys Fired 4 | . . . . . . 2 . . . . 2 . . . Largest 1 | . . . . . . 1 . . . . 1 . . . Hottest 113 | . . . . . . 100 . . . . 113 . . . Shots Fired 4 | . . . . . . 2 . . . . 2 . . . Gun 1 | . . . . . . 1 . . . . . . . . Cannon 2 | . . . . . . . . . . . 2 . . . Launcher . | . . . . . . . . . . . . . . . Special 1 | . . . . . . 1 . . . . . . . . Kinetic . | . . . . . . . . . . . . . . . Thermal 3 | . . . . . . 1 . . . . 2 . . . Explosive . | . . . . . . . . . . . . . . . Electromagnetic 1 | . . . . . . 1 . . . . . . . . Robot Hit Streak . | . . . . . . . . . . . . . . . Robot Miss Streak . | . . . . . . . . . . . . . . . Penetration Max . | . . . . . . . . . . . . . . . Secondary Targets . | . . . . . . . . . . . . . . . Shots Hit Robots 6 | . . . . . . . . . . . . . . 6 Core Hits 3 | . . . . 1 . . . . . . . . . 2 Critical Kills . | . . . . . . . . . . . . . . . Critical Parts Destroyed . | . . . . . . . . . . . . . . . Critical Strikes 1 | . . . . . . . . . . . . . . 1 Impale 1 | . . . . . . . . . . . . . . 1 Melee Attacks 24 | . . . . . . . . . . . 4 1 . 19 Impact . | . . . . . . . . . . . . . . . Slashing . | . . . . . . . . . . . . . . . Piercing 24 | . . . . . . . . . . . 4 1 . 19 Sneak Attacks 5 | . . . . . . . . . . . . . . 5 Combat Hostiles . | . . . . . . . . . . . . . . . Follow-up Attacks . | . . . . . . . . . . . . . . . Damage Inflicted 741 | . . . . 3 . . . . . . . . . 738 Guns . | . . . . . . . . . . . . . . . Cannons . | . . . . . . . . . . . . . . . Explosions . | . . . . . . . . . . . . . . . Melee 738 | . . . . . . . . . . . . . . 738 Ramming 3 | . . . . 3 . . . . . . . . . . Kinetic . | . . . . . . . . . . . . . . . Thermal . | . . . . . . . . . . . . . . . Explosive . | . . . . . . . . . . . . . . . Electromagnetic . | . . . . . . . . . . . . . . . Impact . | . . . . . . . . . . . . . . . Slashing . | . . . . . . . . . . . . . . . Piercing 738 | . . . . . . . . . . . . . . 738 Highest Corruption . | . . . . . . . . . . . . . . . Average Corruption . | . . . . . . . . . . . . . . . Corruption Purged . | . . . . . . . . . . . . . . . Corruption Blocked . | . . . . . . . . . . . . . . . Overload Shots . | . . . . . . . . . . . . . . . Overflow Damage 574 | . . . . . . . . . . . . . . 574 Projectiles . | . . . . . . . . . . . . . . . Explosions . | . . . . . . . . . . . . . . . Melee 574 | . . . . . . . . . . . . . . 574 Knockbacks . | . . . . . . . . . . . . . . . Impact . | . . . . . . . . . . . . . . . Kinetic . | . . . . . . . . . . . . . . . Secondary . | . . . . . . . . . . . . . . . Self-Inflicted Damage . | . . . . . . . . . . . . . . . Shots . | . . . . . . . . . . . . . . . Rammed 1 | . . . . 1 . . . . . . . . . . Targets Rammed 1 | . . . . 1 . . . . . . . . . . Kicked . | . . . . . . . . . . . . . . . Crushed . | . . . . . . . . . . . . . . . Highest Temperature 199 | . . . . . . . . . . 63 199 75 108 198 Average Temperature 107 | . . . . . . . . . . 24 111 34 66 138 Received Heat Transfer 96 | . . . . . . . . . . 9 69 . . 18 Siege Activations . | . . . . . . . . . . . . . . . Martial Activations . | . . . . . . . . . . . . . . . Shielding Activations . | . . . . . . . . . . . . . . . Robots Disrupted . | . . . . . . . . . . . . . . . Combat Hostiles . | . . . . . . . . . . . . . . . Robots Corrupted . | . . . . . . . . . . . . . . . Combat Hostiles . | . . . . . . . . . . . . . . . Parts Fried . | . . . . . . . . . . . . . . . Impact Corruptions . | . . . . . . . . . . . . . . . Robots Melted . | . . . . . . . . . . . . . . . Combat Hostiles . | . . . . . . . . . . . . . . . Parts Melted . | . . . . . . . . . . . . . . . Heat Transferred . | . . . . . . . . . . . . . . . Parts Sabotaged . | . . . . . . . . . . . . . . . Parts Stolen . | . . . . . . . . . . . . . . . Parts Stripped . | . . . . . . . . . . . . . . . Power Chain Reactions 1 | . . . . . . . . . . . 1 . . . Alert | -11 -10 -10 -9 -9 -8 -7 -6 -5 -5 -4 -3 -2 -2 -1 ------- Run | Yrd Mat Min Mat Min Mat Fac Fac Fac DSF Fac Res Res DSF Acc Maximum Alert Level 1 | . . . . . . . . . . . 1 . . 1 Low Security (%) 96 | 100 100 100 100 100 100 100 100 100 100 100 83 100 100 99 Level 1 3 | . . . . . . . . . . . 16 . . . Level 2 . | . . . . . . . . . . . . . . . Level 3 . | . . . . . . . . . . . . . . . Level 4 . | . . . . . . . . . . . . . . . Level 5 . | . . . . . . . . . . . . . . . High Security . | . . . . . . . . . . . . . . . Max Security . | . . . . . . . . . . . . . . . Peak Influence 269 | . . . . . 28 63 46 17 11 14 269 150 99 217 Initial 150 | . . . . . . 7 30 17 11 . 1 150 99 . Average 41 | . . . . . 15 6 34 17 3 5 83 142 23 73 Influence Increases 896 | . . . . . 38 98 36 . . 14 395 3 . 312 Destroy 0b10 Robot/NC 30 | . . . . . . . . . . . . . . 30 Destroy Leader 2 | . . . . . . . . . . . . . . 2 Successful Hack 177 | . . . . . 23 23 21 . . 14 35 . . 61 Select Force Hacks 50 | . . . . . . . . . . . 50 . . . Disable Machine 15 | . . . . . . 15 . . . . . . . . Destroy Structure 52 | . . . . . . . . . . . 10 3 . 39 Partial Spotted 195 | . . . . . 15 . 15 . . . 75 . . 90 Lose Combat Pursuer 375 | . . . . . . 60 . . . . 225 . . 90 Influence Decreases 679 | . . . . . 20 53 63 19 16 11 130 139 133 95 Entered New Map 226 | . . . . . . 11 33 19 6 1 3 119 34 . Time Decay 317 | . . . . . 20 42 30 . . 10 107 20 . 88 Lost Part 126 | . . . . . . . . . 10 . 10 . 99 7 Lost Ally 10 | . . . . . . . . . . . 10 . . . Squads Dispatched 13 | . . . . 1 1 1 . . . . 7 . 1 2 Investigation 8 | . . . . 1 . 1 . . . . 6 . . . Extermination 2 | . . . . . . . . . . . 1 . . 1 Reinforcement 3 | . . . . . 1 . . . . . . . 1 1 Assault . | . . . . . . . . . . . . . . . Garrison . | . . . . . . . . . . . . . . . Intercept . | . . . . . . . . . . . . . . . Searches Triggered . | . . . . . . . . . . . . . . . Construction Impeded . | . . . . . . . . . . . . . . . Haulers Reinforced . | . . . . . . . . . . . . . . . Active Scanning Responses . | . . . . . . . . . . . . . . . Cargo Convoy Interrupts . | . . . . . . . . . . . . . . . Stealth | -11 -10 -10 -9 -9 -8 -7 -6 -5 -5 -4 -3 -2 -2 -1 --------- Run | Yrd Mat Min Mat Min Mat Fac Fac Fac DSF Fac Res Res DSF Acc Distress Signals 7 | . 1 . . . . . . . . . 3 . . 3 Communications Jammed . | . . . . . . . . . . . . . . . Distress Signals . | . . . . . . . . . . . . . . . Times Spotted 61 | . 3 . . . 2 2 . . 1 1 26 2 5 19 Peak Tracking Total 13 | . 5 . . . 1 8 . . 1 1 13 2 5 12 Tactical Retreats 9 | . . . . . . 1 . . . . 6 . . 2 Traps | -11 -10 -10 -9 -9 -8 -7 -6 -5 -5 -4 -3 -2 -2 -1 ------- Run | Yrd Mat Min Mat Min Mat Fac Fac Fac DSF Fac Res Res DSF Acc Traps Triggered 6 | . . . . . . 1 . . . . 3 . . 2 Indirectly . | . . . . . . . . . . . . . . . Trap Hack Attempts . | . . . . . . . . . . . . . . . Triggered . | . . . . . . . . . . . . . . . Disarmed . | . . . . . . . . . . . . . . . Reprogrammed . | . . . . . . . . . . . . . . . Reused . | . . . . . . . . . . . . . . . Traps Extracted . | . . . . . . . . . . . . . . . Installed . | . . . . . . . . . . . . . . . Triggered . | . . . . . . . . . . . . . . . Machines | -11 -10 -10 -9 -9 -8 -7 -6 -5 -5 -4 -3 -2 -2 -1 ---------- Run | Yrd Mat Min Mat Min Mat Fac Fac Fac DSF Fac Res Res DSF Acc Machines Disabled 1 | . . . . . . 1 . . . . . . . . Max in Single Turn 1 | . . . . . . 1 . . . . . . . . Machines Repaired . | . . . . . . . . . . . . . . . Machines Dismantled . | . . . . . . . . . . . . . . . Machines Sabotaged . | . . . . . . . . . . . . . . . Overloaded Fab Kills 4 | . . . . . . . . . . . 4 . . . Hacking | -11 -10 -10 -9 -9 -8 -7 -6 -5 -5 -4 -3 -2 -2 -1 --------- Run | Yrd Mat Min Mat Min Mat Fac Fac Fac DSF Fac Res Res DSF Acc Machines Accessed 25 | . . . 1 1 3 3 2 1 . 1 8 1 . 4 Terminals 20 | . . . 1 1 3 2 1 1 . . 7 1 . 3 Fabricators 1 | . . . . . . . . . . . 1 . . . Repair Stations 3 | . . . . . . 1 1 . . 1 . . . . Recycling Units . | . . . . . . . . . . . . . . . Scanalyzers 1 | . . . . . . . . . . . . . . 1 Garrison Access . | . . . . . . . . . . . . . . . Total Hacks 65 | . . . 2 5 11 12 4 1 . 1 20 1 . 8 Successful 28 | . . . 1 . 6 5 2 1 . 1 6 1 . 5 Failed 37 | . . . 1 5 5 7 2 . . . 14 . . 3 Catastrophic 8 | . . . . . . 1 . . . . 7 . . . Database Lockouts . | . . . . . . . . . . . . . . . Manual 38 | . . . 2 5 7 7 1 . . . 14 . . 2 Terminals 55 | . . . 2 5 11 10 2 1 . . 18 1 . 5 Fabricators 2 | . . . . . . . . . . . 2 . . . Repair Stations 5 | . . . . . . 2 2 . . 1 . . . . Recycling Units . | . . . . . . . . . . . . . . . Scanalyzers 3 | . . . . . . . . . . . . . . 3 Garrison Access . | . . . . . . . . . . . . . . . Terminal Hacks 13 | . . . . . 4 4 . 1 . . 1 1 . 2 Robot Analysis 1 | . . . . . 1 . . . . . . . . . Prototype ID Bank 1 | . . . . . . 1 . . . . . . . . Open Door 1 | . . . . . . . . . . . . . . 1 Open DSF 2 | . . . . . . . . 1 . . . 1 . . Level Access Points 4 | . . . . . 1 1 . . . . 1 . . 1 Branch Access Points 1 | . . . . . 1 . . . . . . . . . Zone Layout 3 | . . . . . 1 2 . . . . . . . . Fabricator Hacks . | . . . . . . . . . . . . . . . Repair Station Hacks 2 | . . . . . . . 1 . . 1 . . . . Refit 2 | . . . . . . . 1 . . 1 . . . . Recycling Unit Hacks . | . . . . . . . . . . . . . . . Scanalyzer 2 | . . . . . . . . . . . . . . 2 Retrieve Study 2 | . . . . . . . . . . . . . . 2 Garrison Access Hacks . | . . . . . . . . . . . . . . . Unauthorized Hacks 11 | . . . 1 . 2 1 1 . . . 5 . . 1 Terminals 10 | . . . 1 . 2 1 1 . . . 4 . . 1 Assimilate 2 | . . . . . . . . . . . 2 . . . Botnet 8 | . . . 1 . 2 1 1 . . . 2 . . 1 Fabricators 1 | . . . . . . . . . . . 1 . . . Overload 1 | . . . . . . . . . . . 1 . . . Repair Stations . | . . . . . . . . . . . . . . . Recycling Units . | . . . . . . . . . . . . . . . Scanalyzers . | . . . . . . . . . . . . . . . Garrison Access . | . . . . . . . . . . . . . . . Data Cores Recovered . | . . . . . . . . . . . . . . . Used . | . . . . . . . . . . . . . . . Hacking Detections 22 | . . . 1 1 3 2 1 1 . 1 8 . . 4 Full Trace Events 6 | . . . . 1 . 1 . . . . 4 . . . Feedback Events . | . . . . . . . . . . . . . . . Feedback Blocked . | . . . . . . . . . . . . . . . Robot Schematics Acquired . | . . . . . . . . . . . . . . . Robots Built . | . . . . . . . . . . . . . . . Authchips . | . . . . . . . . . . . . . . . Time . | . . . . . . . . . . . . . . . Total Robot Build Rating . | . . . . . . . . . . . . . . . Part Schematics Acquired . | . . . . . . . . . . . . . . . Parts Built . | . . . . . . . . . . . . . . . Authchips . | . . . . . . . . . . . . . . . Time . | . . . . . . . . . . . . . . . Total Part Build Rating . | . . . . . . . . . . . . . . . Part Studies Acquired 2 | . . . . . . . . . . . . . . 2 Parts Repaired . | . . . . . . . . . . . . . . . Time . | . . . . . . . . . . . . . . . Parts Recycled . | . . . . . . . . . . . . . . . Recycled Matter . | . . . . . . . . . . . . . . . Retrieved Matter . | . . . . . . . . . . . . . . . Retrieved Components . | . . . . . . . . . . . . . . . Parts Scanalyzed . | . . . . . . . . . . . . . . . Part Schematics Acquired . | . . . . . . . . . . . . . . . Parts Damaged . | . . . . . . . . . . . . . . . Bothacking | -11 -10 -10 -9 -9 -8 -7 -6 -5 -5 -4 -3 -2 -2 -1 ------------ Run | Yrd Mat Min Mat Min Mat Fac Fac Fac DSF Fac Res Res DSF Acc Used RIF Installer . | . . . . . . . . . . . . . . . Robots Hacked . | . . . . . . . . . . . . . . . Non-combat . | . . . . . . . . . . . . . . . Combat . | . . . . . . . . . . . . . . . Robot Hacks Applied . | . . . . . . . . . . . . . . . Relay Couplers Released . | . . . . . . . . . . . . . . . Fabnet Peak Effective % . | . . . . . . . . . . . . . . . Robots Rewired . | . . . . . . . . . . . . . . . Allies Hacked . | . . . . . . . . . . . . . . . Hacks Repelled . | . . . . . . . . . . . . . . . Allies | -11 -10 -10 -9 -9 -8 -7 -6 -5 -5 -4 -3 -2 -2 -1 -------- Run | Yrd Mat Min Mat Min Mat Fac Fac Fac DSF Fac Res Res DSF Acc Total Allies 1 | . . . . . . . . . . . 1 . . . Largest Group 1 | . . . . . . . . . . . 1 . . . Highest-Rated Group 45 | . . . . . . . . . . . 45 . . . Highest-Rated Ally 45 | . . . . . . . . . . . 45 . . . Total Orders . | . . . . . . . . . . . . . . . Ally Attacks . | . . . . . . . . . . . . . . . Total Damage . | . . . . . . . . . . . . . . . Kills . | . . . . . . . . . . . . . . . Allies Corrupted . | . . . . . . . . . . . . . . . Allies Melted . | . . . . . . . . . . . . . . . Intel | -11 -10 -10 -9 -9 -8 -7 -6 -5 -5 -4 -3 -2 -2 -1 ------- Run | Yrd Mat Min Mat Min Mat Fac Fac Fac DSF Fac Res Res DSF Acc Active Infowar (turns) 960 | . . 32 42 49 59 148 79 6 18 26 224 48 42 187 Optics 473 | . . . . . . . . . . . 196 48 42 187 Sensors 742 | . . 32 42 49 59 148 79 6 18 26 224 48 11 . Terrain 44 | . . . . . . . . . . . . . . 44 Structural 138 | . . . . . . . . . . . . . . 138 Seismic 159 | . . . . . . . . . . . . . . 159 Cloaking 382 | . . . . . . . 53 6 18 26 223 48 8 . Robot Analysis Total 1 | . . . . . 1 . . . . . . . . . Derelict Logs Recovered 1 | . . 1 . . . . . . . . . . . . Drone Launches . | . . . . . . . . . . . . . . . Drone Recoveries . | . . . . . . . . . . . . . . . Exploration | -11 -10 -10 -9 -9 -8 -7 -6 -5 -5 -4 -3 -2 -2 -1 ------------- Run | Yrd Mat Min Mat Min Mat Fac Fac Fac DSF Fac Res Res DSF Acc Turns Passed 1105 | 14 27 107 42 49 59 177 79 6 18 26 224 48 42 187 Spaces Moved 3103 | 20 53 211 80 97 112 345 216 21 32 97 761 176 85 797 Core 687 | 20 53 211 80 97 112 114 . . . . . . . . Treads . | . . . . . . . . . . . . . . . Legs . | . . . . . . . . . . . . . . . Wheels . | . . . . . . . . . . . . . . . Hover . | . . . . . . . . . . . . . . . Flight 2416 | . . . . . . 231 216 21 32 97 761 176 85 797 Fastest Speed 10 | 50 50 50 50 50 50 37 29 29 27 24 24 24 10 10 Average Speed 28 | 50 50 50 50 50 50 43 32 29 28 24 24 24 19 13 Slowest Speed 100 | 50 50 50 50 50 50 100 37 29 32 24 24 24 32 29 Overloaded Moves . | . . . . . . . . . . . . . . . Propulsion Burnouts . | . . . . . . . . . . . . . . . Robots Hopped 23 | . . . . . . 3 1 . . . 17 . . 2 Potential Cave-ins . | . . . . . . . . . . . . . . . Cave-ins Triggered . | . . . . . . . . . . . . . . . Exploration Rate (%) 22 | 3 20 47 16 28 15 10 9 1 42 4 40 9 57 40 Regions Visited 14 Branch Regions 2 Pre-discovered Areas . | . . . . . . . . . . . . . . . Known Exits Taken 8 | . . . . 1 1 1 1 1 . 1 1 1 . . Unknown Exits Taken 4 | 1 1 1 1 . . . . . . . . . . . Scrap Searched 1 | . . 1 . . . . . . . . . . . . Spaces Dug 19 | . . . . . . . . . . . 5 1 . 13 Terrain Destroyed 19 | . . . . . . . . . . . 5 1 . 13 Melee 17 | . . . . . . . . . . . 3 1 . 13 Projectile 2 | . . . . . . . . . . . 2 . . . AOE . | . . . . . . . . . . . . . . . Terrain Rammed . | . . . . . . . . . . . . . . . Walls Destroyed . | . . . . . . . . . . . . . . . Machines Disabled . | . . . . . . . . . . . . . . . Actions | -11 -10 -10 -9 -9 -8 -7 -6 -5 -5 -4 -3 -2 -2 -1 --------- Run | Yrd Mat Min Mat Min Mat Fac Fac Fac DSF Fac Res Res DSF Acc Total 3199 | 22 52 211 81 97 114 362 220 20 39 99 771 178 102 831 Wait 10 | . . . . . 2 5 . . . . . . 3 . Move 3047 | 19 52 210 79 97 111 338 213 20 31 96 730 175 84 792 Hop 19 | . . . . . . 3 1 . . . 13 . . 2 Pick Up 14 | . . . 2 . 1 2 . . 2 1 4 . 1 1 Fast Attach 44 | 3 . 1 . . . 5 3 . 3 . 3 . 14 12 Attach 12 | . . . . . . 2 1 . 1 1 2 2 . 3 Detach 1 | . . . . . . . . . . . 1 . . . Swap 8 | . . . . . . . 2 . . . 6 . . . Drop 12 | . . . . . . 5 . . 2 1 2 . . 2 Fire 4 | . . . . . . 2 . . . . 2 . . . Melee 24 | . . . . . . . . . . . 4 1 . 19 Ram . | . . . . . . . . . . . . . . . Kick . | . . . . . . . . . . . . . . . Crush . | . . . . . . . . . . . . . . . Escape Stasis 4 | . . . . . . . . . . . 4 . . . Rewire . | . . . . . . . . . . . . . . . Trap . | . . . . . . . . . . . . . . . Miscellaneous . | . . . . . . . . . . . . . . . Route ------- -11/Scrapyard -10/Materials -10/Mines -9/Materials (discovered 3 exits: Mat x2 / *Min) -9/Mines -8/Materials (discovered 3 exits: *Fac x3) -7/Factory (discovered 5 exits: *Fac x4 / *Low) -6/Factory -5/Factory -5/DSF -4/Factory -3/Research (discovered 3 exits: *Res x3) -2/Research -2/DSF -1/Access To Epsilon Eridani History --------- Turn | Location | Event 5 | -11/Scrapyard | Discovered new exit (range 15) 15 | -11/Scrapyard | Entered Materials 35 | -10/Materials | Discovered new exit (range 14) 42 | -10/Materials | Entered Mines 46 | -10/Mines | Learned location of 2 exits from Materials 116 | -10/Mines | Found a damaged Exp. Sensor Array with a note attached 117 | -10/Mines | Found Prototype Device 117 | -10/Mines | Identified Exp. Sensor Array 146 | -10/Mines | Discovered new exit (range 8) 149 | -10/Mines | Entered Materials 149 | -9/Materials | Evolved 2 slots: Propulsion x2 150 | -9/Materials | Identified exit to Materials 181 | -9/Materials | Discovered new exit (range 16) 191 | -9/Materials | Entered Mines 198 | -9/Mines | Met a Derelict bent on vengeance 237 | -9/Mines | Discovered exit to Materials (range 7) 240 | -9/Mines | Entered Materials 240 | -8/Materials | Evolved 2 slots: Utility x2 269 | -8/Materials | Identified exit to Factory 299 | -8/Materials | Entered Factory 299 | -7/Factory | Evolved 2 slots: Propulsion x2 309 | -7/Factory | Build established: Mutant 407 | -7/Factory | Discovered new exit (range 6) 418 | -7/Factory | Identified exit to Lower Caves 427 | -7/Factory | Identified exit to Factory 476 | -7/Factory | Entered another Factory area 476 | -6/Factory | Evolved 2 slots: Power x1, Propulsion x1 553 | -6/Factory | Discovered new exit (range 5) 554 | -6/Factory | Identified exit to Factory 555 | -6/Factory | Entered another Factory area 555 | -5/Factory | Evolved 2 slots: Propulsion x1, Utility x1 561 | -5/Factory | Identified exit to DSF 561 | -5/Factory | Entered DSF 566 | -5/DSF | Discovered new exit (range 16) 576 | -5/DSF | Additional patrols routed to DSF 579 | -5/DSF | Identified exit to Factory 579 | -5/DSF | Entered Factory 579 | -4/Factory | Evolved 2 slots: Propulsion x2 604 | -4/Factory | Discovered new exit (range 5) 605 | -4/Factory | Identified exit to Research 605 | -4/Factory | Entered Research 605 | -3/Research | Evolved 2 slots: Propulsion x1, Utility x1 633 | -3/Research | Found Prototype Processor 633 | -3/Research | Identified Spectral Analyzer 734 | -3/Research | Spotted B-86 Titan 750 | -3/Research | Spotted B-86 Titan 802 | -3/Research | Identified exit to Research 829 | -3/Research | Entered another Research area 829 | -2/Research | Evolved 2 slots: Utility x2 877 | -2/Research | Identified exit to DSF 877 | -2/Research | Entered DSF 879 | -2/DSF | Discovered new exit (range 23) 894 | -2/DSF | Additional patrols routed to DSF 916 | -2/DSF | Identified exit to Access 919 | -2/DSF | Entered Access 919 | -1/Access | Evolved 2 slots: Power x1, Propulsion x1 943 | -1/Access | Lost 14 parts (4p7n3u) 975 | -1/Access | Spotted B-99 Colossus 994 | -1/Access | Spotted B-99 Colossus 1051 | -1/Access | Identified exit to Surface 1106 | *** | Escaped! Last Messages --------------- 01023_ Acquired Q-thruster+. 01025_ Acquired Adv. Surge Thruster+. 01028_ Acquired Imp. Fusion Compressor. 01031_ ALERT: Hostiles spotted, dispatching reinforcements to Terminal A011. 01034_ ALERT: Potential suspicious activity detected, Programmers report to Access Zone 4G. 01042_ Acquired Q-thruster+. 01051_ Connecting with Terminal... >>Access(Main) Found 1 level access point to Surface: (86,263) Map updated. 01064_ U-05 Engineer builds a Wall. 01073_ Penetrated by Slug. 01105_ Connecting with Terminal... >>Open(Door) Sealed Barrier opened. 01105_ The Access Shell folds into the floor. Map ----- +----------------------------------------------------+ | ??? # !! ##??????????????????????????????? | | ??? # ##??????????????????????????????? | | ??? # ##??????????????????????????????? | | ??? # ##??????????????????????????????? | | ??? # ##??????????????????????????????? | | ??? # ##??????????????????????????????? | | ??? + ##??????????????????????????????? | | ??? # ###?????????????????????????????? | | ??? # ####????????????????????????????? | | ##? #############"#########################??????? | | # #############"########################??????? | | k ?????? | | k ?????? | | ???????#####+########w ""###???????????????? | | ??????? ### ""###???????????????? | | ???????????????????## ""##????????????????? | | ???????????????????## T##????????????????? | | ???????????????????## ""##????????????????? | | ??????????????????### ""###???????????????? | | ??????????????????### ""###???????????????? | | ??????????????????## ##???????????????? | | ??????????????????### ###???????????????? | | ??????????????????### ###???????????????? | | ???????????????????## ##????????????????? | | ???????????????????## ##????????????????? | | ???????????????????## @" ##????????????????? | | ???????????????????## "" ##????????????????? | | ???????????????????## ##????????????????? | | ???????????????????## ##????????????????? | | ???????????????????## ##????????????????? | | ???????????????????##""""""""""##????????????????? | | ???????????????????##"????????"##????????????????? | | ?????????????????????????????????????????????????? | | ?????????????????????????????????????????????????? | | ?????????????????????????????????????????????????? | | ?????????????????????????????????????????????????? | | ?????????????????????????????????????????????????? | | ?????????????????????????????????????????????????? | | ?????????????????????????????????????????????????? | | ?????????????????????????????????????????????????? | | ?????????????????????????????????????????????????? | | ?????????????????????????????????????????????????? | | ?????????????????????????????????????????????????? | | ?????????????????????????????????????????????????? | | ?????????????????????????????????????????????????? | | ?????????????????????????????????????????????????? | | ?????????????????????????????????????????????????? | | ?????????????????????????????????????????????????? | | ?????????????????????????????????????????????????? | | ?????????????????????????????????????????????????? | +----------------------------------------------------+ Best States ------------- Heat Dissipation 52 Coolant Potential 200 Energy Generation 51 Energy Capacity 310 Matter Stores 300 Matter Capacity 300 Sight Range 24 Robot Scan Range 20 Terrain Scan Range 16 Terrain Scan Density 10 Cloak Strength 2 Propulsion Shielding 33 Evasion (%) 66 Offensive Hacking 24 Item Schematics ----------------- None Robot Schematics ------------------ None Fabricated ------------ Nothing Repaired ---------- Nothing Studied --------- Adv. Surge Thruster | -1/Access | Hacked Q-thruster | -1/Access | Hacked Alien Tech Used ----------------- None Achievements -------------- None Challenges ------------ None Game ------ Seed DisposableVoltaicTendrils Manual? 0 Play Time 00:34:10 Cumulative 394.7 hours Start 2026.09.03 @ 21:36:04 End 2026.09.03 @ 22:07:58 Sessions 1 Manual Loads 0 Difficulty Rogue Special Mode None Game No. 188 Rogue 188 Adventurer 0 Explorer 0 Win Type 0 Total 40 Types 19/1/9/2/5/1/1/0/0/2 Lore% 89 Gallery% 80 Achievement% 87 Wizard Run 0 Options --------- Layout 1 ASCII 0 Keyboard 0 Movement Numpad Keybinds 0 Fullscreen 1 Font 24/Smallcaps Map View 50x35 Zoom Use 0% Tactical HUD 1 Map Filters NONE Filters NONE Steam 1 RUN: 8f3b6430-137b-45a8-9242-cb15df4451a3